bitfinex-derivatives/quotes_BTCF0:USTF0_20240814
["timestamp","ask_amount","ask_price","bid_price","bid_amount"]
[1723641201633,0.2835,60870.0,60866.0,0.04898145]
[1723641201822,0.2835,60870.0,60866.0,0.40978145]
[1723641202129,0.0001506,60872.0,60869.0,0.04898145]
[1723641202320,0.0001506,60872.0,60870.0,0.21558145]
[1723641202521,0.0001506,60872.0,60870.0,0.1666]
[1723641203330,0.0011506,60872.0,60871.0,0.3608]
[1723641203730,0.0011506,60872.0,60871.0,0.49187745]
[1723641204028,0.001,60872.0,60871.0,1.25364]
[1723641204234,0.3608,60890.0,60871.0,1.25364]
[1723641204430,0.3608,60890.0,60886.0,0.082076]
[1723641204623,0.3608,60890.0,60887.0,0.4744]
[1723641205327,0.442871,60890.0,60887.0,0.4744]
[1723641205534,0.3618,60890.0,60887.0,0.3194]
[1723641205733,0.082073,60888.0,60887.0,0.1648]
[1723641206324,0.082073,60888.0,60882.0,0.00024625]
[1723641206628,0.3608,60885.0,60882.0,0.00024625]
[1723641207226,0.442878,60885.0,60882.0,0.00024625]
[1723641207530,0.3608,60885.0,60882.0,0.00024625]
[1723641209131,0.442877,60885.0,60882.0,0.00024625]
[1723641209336,0.3618,60885.0,60882.0,0.00024625]
[1723641210236,0.082079,60884.0,60882.0,0.00024625]
[1723641211429,0.3618,60885.0,60882.0,0.00024625]
[1723641211835,0.3618,60885.0,60882.0,0.08232725]
[1723641212240,0.3618,60885.0,60882.0,0.00024625]
[1723641212741,0.3618,60885.0,60882.0,0.05111709]
[1723641212742,0.082079,60884.0,60882.0,0.05111709]
[1723641213042,0.082079,60884.0,60882.0,0.00224625]
[1723641213231,0.3628,60885.0,60882.0,0.00224625]
[1723641213232,0.08208,60883.0,60882.0,0.00224625]
[1723641214437,0.08208,60883.0,60882.0,0.00424625]
[1723641215637,0.3608,60885.0,60882.0,0.00024625]
[1723641216139,0.36819616,60885.0,60882.0,0.00024625]
[1723641217537,0.082088,60877.0,60876.0,0.04887084]
[1723641217740,0.2835,60879.0,60873.0,0.04894501]
[1723641218039,0.2835,60874.0,60872.0,0.04894502]
[1723641218640,0.2835,60874.0,60873.0,0.04894502]
[1723641218641,0.365592,60874.0,60873.0,0.04894502]
[1723641218840,0.365592,60874.0,60871.0,0.04894502]
[1723641218841,0.082094,60873.0,60871.0,0.04894502]
[1723641219346,0.082095,60872.0,60871.0,0.04007758]
[1723641219533,0.64582,60874.0,60869.0,0.02201042]
[1723641219733,0.2835,60870.0,60869.0,0.02201042]
[1723641219934,0.2835,60870.0,60846.0,0.13853592]
[1723641219935,0.6443,60870.0,60848.0,0.3608]
[1723641220134,0.6515185,60874.0,60848.0,0.3608]
[1723641220135,0.2835,60858.0,60848.0,0.3608]
[1723641220339,0.7216,60849.0,60825.0,0.4586065]
[1723641220535,0.2835,60832.0,60830.0,0.3608]
[1723641220847,0.00016482,60831.0,60830.0,0.3608]
[1723641221139,0.00016482,60831.0,60826.0,0.3143]
[1723641221333,0.00016482,60831.0,60826.0,0.153]
[1723641221535,0.00016482,60831.0,60825.0,0.3608]
[1723641221744,0.2835,60829.0,60825.0,0.3608]
[1723641222230,0.2835,60829.0,60816.0,0.1663]
[1723641222231,0.3608,60827.0,60812.0,0.3608]
[1723641222434,0.2835,60813.0,60812.0,0.3608]
[1723641222632,0.28363377,60813.0,60812.0,0.3608]
[1723641223253,0.28363377,60813.0,60801.0,0.3089]
[1723641223545,0.28363377,60813.0,60793.0,0.34499081]
[1723641223546,0.2835,60802.0,60793.0,0.34499081]
[1723641223841,0.3553,60794.0,60788.0,0.3608]
[1723641224343,0.3553,60794.0,60786.0,0.3608]
[1723641224535,0.00014879,60793.0,60792.0,0.3608]
[1723641224845,0.00024668,60804.0,60802.0,0.082188]
[1723641225044,0.001,60813.0,60803.0,0.73000965]
[1723641225247,0.001,60813.0,60812.0,0.3608]
[1723641225437,0.3608,60822.0,60812.0,0.3608]
[1723641225638,0.3608,60816.0,60804.0,0.1613]
[1723641225939,0.3608,60816.0,60786.0,0.0978065]
[1723641225940,0.3608,60805.0,60798.0,0.3608]
[1723641226133,0.3553,60799.0,60798.0,0.3608]
[1723641226340,0.3553,60799.0,60790.0,0.3018]
[1723641226652,0.3608,60798.0,60795.0,0.00024668]
[1723641226848,0.3553,60796.0,60795.0,0.00024668]
[1723641227041,0.00015354,60795.0,60786.0,0.3608]
[1723641227343,0.3608,60791.0,60786.0,0.3608]
[1723641227541,0.00015354,60795.0,60786.0,0.3608]
[1723641228241,0.00015354,60795.0,60792.0,0.3608]
[1723641228542,0.3553,60794.0,60786.0,0.3608]
[1723641229046,0.00015354,60795.0,60786.0,0.3608]
[1723641229047,0.3553,60787.0,60786.0,0.3608]
[1723641229343,0.3555015,60787.0,60786.0,0.3608]
[1723641229551,0.3555015,60787.0,60775.0,0.3608]
[1723641230259,0.3555015,60787.0,60780.0,0.36084]
[1723641230850,0.3608,60783.0,60780.0,4e-05]
[1723641231041,0.3553,60781.0,60780.0,4e-05]
[1723641231247,0.00020684,60780.0,60770.0,0.3608]
[1723641231453,0.3553,60771.0,60770.0,0.3608]
[1723641231745,0.000204,60771.0,60770.0,0.443033]
[1723641232147,0.00024668,60781.0,60770.0,1.25448]
[1723641232342,0.00024668,60781.0,60780.0,0.3608]
[1723641232649,0.002,60787.0,60785.0,0.082212]
[1723641232838,0.00741027,60796.0,60786.0,0.3608]
[1723641233043,0.3608,60787.0,60775.0,0.00749087]
[1723641233236,0.3608,60787.0,60773.0,0.3608]
[1723641233237,0.3553,60781.0,60773.0,0.3608]
[1723641233441,0.082221,60779.0,60773.0,0.3608]
[1723641233644,0.3563,60781.0,60773.0,0.3608]
[1723641234138,0.082222,60778.0,60773.0,0.3608]
[1723641234340,0.3563,60781.0,60773.0,0.3608]
[1723641234550,0.082231,60771.0,60770.0,0.00024668]
[1723641234759,0.4,60771.0,60757.0,0.36179]
[1723641234944,0.3608,60773.0,60757.0,0.36179]
[1723641234945,0.3553,60763.0,60757.0,0.36179]
[1723641235248,0.082249,60758.0,60757.0,0.00099]
[1723641235439,0.3608,60760.0,60757.0,0.00099]
[1723641235638,0.3553,60763.0,60757.0,0.00099]
[1723641235639,0.082249,60758.0,60757.0,0.00099]
[1723641235842,0.082249,60758.0,60740.0,0.3608]
[1723641235843,0.17948624,60758.0,60740.0,0.3608]
[1723641236041,0.3553,60742.0,60740.0,0.3608]
[1723641236547,0.3553,60742.0,60729.0,0.3608]
[1723641236548,0.49392,60741.0,60729.0,0.3608]
[1723641236749,0.3553,60732.0,60729.0,0.3608]
[1723641236951,0.7161,60732.0,60714.0,0.3608]
[1723641237249,0.3553,60720.0,60714.0,0.3608]
[1723641237449,0.29766848,60720.0,60714.0,0.3608]
[1723641238650,0.29866848,60720.0,60714.0,0.3608]
[1723641239065,0.001,60720.0,60719.0,0.3608]
[1723641239349,0.00024691,60723.0,60719.0,0.3608]
[1723641239547,0.00024691,60723.0,60722.0,0.3608]
[1723641240059,0.3553,60726.0,60722.0,0.3608]
[1723641240240,0.3553,60734.0,60723.0,0.49404]
[1723641240441,0.3553,60740.0,60732.0,0.3608]
[1723641240644,0.3553,60747.0,60739.0,0.3608]
[1723641240845,0.00763611,60753.0,60739.0,0.3608]
[1723641241046,0.3553,60754.0,60739.0,0.3608]
[1723641241249,0.00024691,60750.0,60739.0,0.3608]
[1723641241850,0.00024691,60750.0,60747.0,0.082263]
[1723641242052,0.00024691,60750.0,60749.0,0.3608]
[1723641242257,0.36104691,60750.0,60742.0,0.3608]
[1723641242456,0.36104691,60750.0,60741.0,0.3608]
[1723641242657,0.3608,60743.0,60727.0,0.3608]
[1723641243554,0.525352,60738.0,60727.0,0.3608]
[1723641243746,0.443076,60738.0,60727.0,0.3608]
[1723641243948,1.25472,60738.0,60714.0,0.3608]
[1723641244148,0.082306,60716.0,60714.0,0.3608]
[1723641244549,0.08231,60713.0,60694.0,0.3608]
[1723641244757,0.3608,60700.0,60694.0,0.3608]
[1723641244961,0.31138693,60700.0,60694.0,0.3608]
[1723641245276,0.3608,60711.0,60699.0,0.3608]
[1723641245459,0.082296,60723.0,60709.0,0.3608]
[1723641245847,0.3608,60721.0,60714.0,0.3608]
[1723641246151,0.3608,60721.0,60714.0,0.001]
[1723641246152,0.525414,60715.0,60714.0,0.001]
[1723641246356,0.082309,60714.0,60698.0,0.3478]
[1723641246559,0.082324,60703.0,60698.0,0.3478]
[1723641246861,0.443117,60708.0,60698.0,0.3478]
[1723641247157,0.3608,60708.0,60698.0,0.3478]
[1723641247658,0.3608,60732.0,60707.0,0.3608]
[1723641247964,0.3608,60732.0,60723.0,0.3608]
[1723641248146,0.3608,60732.0,60717.0,0.3608]
[1723641248354,0.3608,60726.0,60713.0,0.3608]
[1723641248953,0.3608,60726.0,60699.0,0.2755]
[1723641248954,0.3608,60739.0,60723.0,0.3608]
[1723641249156,0.3608,60739.0,60732.0,0.3608]
[1723641249452,0.00024712,60737.0,60732.0,0.3608]
[1723641250454,0.00024712,60737.0,60728.0,0.00024712]
[1723641250455,0.3608,60733.0,60728.0,0.00024712]
[1723641250655,0.082287,60730.0,60704.0,0.3608]
[1723641250954,0.00152,60733.0,60726.0,0.3608]
[1723641251157,0.36244001,60737.0,60721.0,0.3608]
[1723641251351,0.3608,60732.0,60721.0,0.3608]
[1723641251856,0.3608,60737.0,60721.0,0.3608]
[1723641251857,0.3608,60737.0,60726.0,0.3608]
[1723641252046,0.3608,60737.0,60725.0,0.3608]
[1723641252047,0.00024712,60733.0,60725.0,0.3608]
[1723641252247,0.3608,60731.0,60722.0,0.295]
[1723641252659,0.3608,60731.0,60720.0,0.3608]
[1723641253351,0.00024712,60733.0,60720.0,0.3608]
[1723641253352,0.00024712,60733.0,60726.0,0.3608]
[1723641253748,0.00024712,60733.0,60727.0,0.791]
[1723641254155,0.3608,60747.0,60732.0,0.3608]
[1723641254355,0.3608,60747.0,60742.0,0.3608]
[1723641254661,0.3608,60759.0,60746.0,0.082264]
[1723641254955,0.3608,60759.0,60752.0,0.3608]
[1723641255157,0.3608,60759.0,60753.0,0.4938]
[1723641255566,0.3608,60769.0,60755.0,0.082252]
[1723641255859,0.082253,60755.0,60754.0,0.00096]
[1723641256061,0.082259,60751.0,60749.0,0.00024691]
[1723641256255,0.3608,60751.0,60749.0,0.00024691]
[1723641256560,0.3608,60751.0,60734.0,0.2678]
[1723641256764,0.3608,60751.0,60735.0,0.082279]
[1723641257059,0.00024691,60756.0,60750.0,0.3608]
[1723641257261,0.00024691,60756.0,60744.0,0.36104691]
[1723641257555,0.00024691,60756.0,60744.0,0.00024691]
[1723641257556,0.3608,60749.0,60744.0,0.00024691]
[1723641258555,0.00024691,60756.0,60747.0,0.3608]
[1723641258863,0.00024691,60756.0,60745.0,0.3608]
[1723641259068,0.00024691,60756.0,60754.0,0.082254]
[1723641259254,0.00024691,60756.0,60755.0,0.1265]
[1723641259458,0.00024691,60756.0,60755.0,0.6203]
[1723641259669,0.3608,60764.0,60755.0,1.1563]
[1723641259958,0.3608,60777.0,60768.0,0.082235]
[1723641260158,0.082211,60786.0,60768.0,0.3608]
[1723641260360,0.3608,60790.0,60781.0,0.082217]
[1723641260556,0.3608,60790.0,60780.0,0.3608]
[1723641260557,0.3608,60802.0,60782.0,0.2741]
[1723641260749,0.3608,60802.0,60791.0,0.082204]
[1723641260954,0.3608,60802.0,60790.0,0.3608]
[1723641261454,0.3608,60802.0,60792.0,0.082202]
[1723641261753,0.00024691,60798.0,60792.0,0.082202]
[1723641261950,0.00024691,60798.0,60790.0,0.3608]
[1723641262355,0.00024691,60798.0,60793.0,0.082201]
[1723641262555,0.00024691,60798.0,60796.0,0.082197]
[1723641262857,0.00024691,60798.0,60790.0,0.36168]
[1723641263061,0.00024691,60798.0,60790.0,0.3608]
[1723641264263,0.00024691,60798.0,60791.0,0.49348]
[1723641264566,0.00024691,60798.0,60795.0,0.3608]
[1723641264763,1e-08,60798.0,60796.0,0.082197]
[1723641264970,1e-08,60798.0,60796.0,0.89344]
[1723641265155,1e-08,60798.0,60795.0,0.3608]
[1723641265351,1e-08,60798.0,60795.0,0.85424]
[1723641265551,1e-08,60798.0,60796.0,0.49344]
[1723641265966,1e-08,60798.0,60797.0,0.49344]
[1723641266365,1e-08,60798.0,60797.0,0.89344]
[1723641268767,1e-08,60798.0,60797.0,1.01344]
[1723641269063,0.3608,60828.0,60811.0,0.082176]
[1723641269064,0.442955,60828.0,60811.0,0.082176]
[1723641269264,0.442955,60828.0,60790.0,0.3608]
[1723641269265,0.3608,60828.0,60817.0,0.3608]
[1723641269458,0.3608,60828.0,60812.0,0.1281]
[1723641269459,0.3608,60823.0,60812.0,0.1281]
[1723641269963,0.082166,60820.0,60812.0,0.1281]
[1723641270169,0.3108,60823.0,60812.0,0.1281]
[1723641270956,0.082176,60812.0,60811.0,0.00024666]
[1723641271361,0.3608,60813.0,60811.0,0.00024666]
[1723641272863,0.49332,60812.0,60794.0,0.3608]
[1723641273068,0.3608,60802.0,60794.0,0.3608]
[1723641273460,0.3608,60795.0,60788.0,0.3608]
[1723641273659,0.3608,60795.0,60784.0,0.3608]
[1723641273868,0.082202,60793.0,60784.0,0.3608]
[1723641274165,0.3608,60795.0,60784.0,0.3608]
[1723641274375,0.0822,60794.0,60784.0,0.3608]
[1723641274567,0.082204,60791.0,60784.0,0.3608]
[1723641274769,0.3608,60795.0,60784.0,0.3608]
[1723641275373,0.3608,60795.0,60789.0,0.082207]
[1723641275671,0.3608,60795.0,60790.0,0.082205]
[1723641275863,0.3608,60795.0,60785.0,0.1319]
[1723641276059,0.00024666,60796.0,60791.0,0.3608]
[1723641276265,0.00024666,60796.0,60794.0,0.3608]
[1723641276771,0.00024666,60796.0,60794.0,0.85428]
[1723641276971,0.00024666,60796.0,60783.0,0.00024666]
[1723641276972,0.49348,60795.0,60783.0,0.00024666]
[1723641277170,0.803813,60785.0,60769.0,0.3608]
[1723641277361,0.3608,60778.0,60769.0,0.3608]
[1723641277563,0.082229,60773.0,60769.0,0.3608]
[1723641277770,0.443022,60778.0,60769.0,0.3608]
[1723641278066,0.3608,60778.0,60769.0,0.3608]
[1723641278272,0.3608,60776.0,60767.0,0.443035]
[1723641278472,0.082231,60771.0,60767.0,0.36104666]
[1723641278665,0.3608,60776.0,60767.0,0.36104666]
[1723641279260,0.3608,60776.0,60768.0,0.082235]
[1723641279473,0.3608,60776.0,60767.0,0.36104666]
[1723641279672,0.00024666,60780.0,60767.0,0.36104666]
[1723641280073,0.3608,60773.0,60767.0,0.00024666]
[1723641280676,0.00024666,60780.0,60767.0,0.49392666]
[1723641280874,0.36104666,60780.0,60767.0,0.08248166]
[1723641281072,0.443027,60774.0,60767.0,0.00024666]
[1723641281273,0.3608,60774.0,60769.0,0.082233]
[1723641281474,0.3608,60774.0,60767.0,0.00024666]
[1723641281475,0.3608,60774.0,60770.0,0.082232]
[1723641281675,0.3608,60774.0,60771.0,0.082231]
[1723641282269,0.3608,60774.0,60767.0,0.00024666]
[1723641282780,0.443027,60774.0,60767.0,0.00024666]
[1723641282971,0.3608,60774.0,60767.0,0.00024666]
[1723641283767,0.00024666,60780.0,60771.0,0.082231]
[1723641283974,0.08246566,60780.0,60771.0,0.082231]
[1723641284173,0.00024666,60780.0,60773.0,0.082228]
[1723641284671,0.00024666,60780.0,60772.0,0.082229]
[1723641284880,0.3608,60776.0,60772.0,0.082229]
[1723641285269,0.00024666,60780.0,60767.0,0.00024666]
[1723641285473,0.3608,60777.0,60772.0,0.082228]
[1723641285670,0.3608,60777.0,60767.0,0.00024666]
[1723641285876,0.3608,60777.0,60775.0,0.082225]
[1723641286277,0.3608,60777.0,60767.0,0.00024666]
[1723641286580,0.082226,60775.0,60769.0,0.082234]
[1723641286974,0.3608,60777.0,60767.0,0.00024666]
[1723641287174,0.3608,60777.0,60775.0,0.082225]
[1723641287579,0.00024666,60780.0,60776.0,0.4936]
[1723641287781,0.082192,60801.0,60777.0,0.3608]
[1723641287782,0.3608,60797.0,60777.0,0.3608]
[1723641288086,0.082204,60791.0,60778.0,0.3608]
[1723641288286,0.442988,60804.0,60790.0,0.3608]
[1723641288583,0.3608,60804.0,60790.0,0.3608]
[1723641288773,0.00792833,60807.0,60790.0,0.3608]
[1723641288774,0.44299,60801.0,60790.0,0.3608]
[1723641288970,0.082192,60800.0,60790.0,0.3608]
[1723641289173,0.3608,60801.0,60795.0,0.082197]
[1723641289382,0.442992,60801.0,60791.0,0.00024666]
[1723641289577,0.082192,60800.0,60792.0,0.082201]
[1723641289886,0.442992,60801.0,60794.0,0.0822]
[1723641290071,0.3608,60801.0,60791.0,0.00024666]
[1723641290270,0.082203,60792.0,60791.0,0.00024666]
[1723641290470,0.164406,60792.0,60791.0,0.00024666]
[1723641290673,0.246609,60792.0,60791.0,6.6e-07]
[1723641290876,0.164406,60792.0,60791.0,6.6e-07]
[1723641292382,0.082203,60792.0,60791.0,6.6e-07]
[1723641293681,0.3608,60793.0,60791.0,6.6e-07]
[1723641294182,0.00779711,60794.0,60791.0,6.6e-07]
[1723641294485,0.3608,60798.0,60791.0,6.6e-07]
[1723641295877,0.3608,60798.0,60794.0,0.0822]
[1723641296083,0.3608,60798.0,60791.0,6.6e-07]
[1723641296283,0.3608,60798.0,60791.0,0.08220466]
[1723641296686,0.00781835,60803.0,60794.0,0.443]
[1723641296882,0.00024666,60803.0,60797.0,0.082196]
[1723641297086,0.00024666,60803.0,60800.0,0.3608]
[1723641298180,0.00024666,60803.0,60802.0,0.082189]
[1723641298382,0.00024666,60803.0,60802.0,0.482189]
[1723641298682,0.0899916,60813.0,60804.0,0.082186]
[1723641298881,0.3608,60817.0,60808.0,0.3608]
[1723641299088,0.082177,60812.0,60808.0,0.3608]
[1723641299383,0.45070842,60817.0,60807.0,0.3608]
[1723641299575,0.45070842,60817.0,60809.0,0.082179]
[1723641299983,0.45070842,60817.0,60807.0,0.3608]
[1723641300390,0.36853842,60817.0,60810.0,0.082179]
[1723641300689,0.36853842,60817.0,60809.0,0.06529377]
[1723641300984,0.3608,60812.0,60809.0,0.06529377]
[1723641301191,0.3608,60812.0,60806.0,0.00024666]
[1723641301488,0.442983,60807.0,60806.0,0.00024666]
[1723641302284,1.25416,60807.0,60791.0,0.06529377]
[1723641302488,0.3608,60793.0,60790.0,0.06529377]
[1723641302692,0.3608,60793.0,60785.0,0.1274]
[1723641302693,0.3608,60793.0,60787.0,0.06529377]
[1723641302883,0.3608,60800.0,60788.0,0.42609377]
[1723641303190,0.082211,60786.0,60778.0,0.06529377]
[1723641303393,0.082211,60786.0,60777.0,0.328]
[1723641303394,0.082211,60786.0,60779.0,0.06529377]
[1723641305185,0.3608,60789.0,60780.0,0.06529377]
[1723641305485,0.3608,60789.0,60778.0,0.06529377]
[1723641305792,0.082209,60788.0,60778.0,0.06529377]
[1723641306390,0.00024666,60790.0,60789.0,0.082207]
[1723641306878,0.00024666,60790.0,60789.0,0.975727]
[1723641307085,0.3608,60801.0,60789.0,0.975727]
[1723641307086,0.3608,60801.0,60789.0,1.01876073]
[1723641307284,0.3608,60812.0,60799.0,0.06539392]
[1723641307492,0.3608,60812.0,60803.0,0.082188]
[1723641307684,0.3608,60812.0,60804.0,0.082187]
[1723641307880,0.3608,60812.0,60804.0,0.06539392]
[1723641308088,0.082161,60823.0,60811.0,0.14757092]
[1723641308289,0.00024666,60814.0,60813.0,0.06537152]
[1723641308592,0.00024666,60814.0,60812.0,0.06533145]
[1723641309395,0.00024666,60814.0,60809.0,0.42613145]
[1723641309588,0.3608,60813.0,60809.0,0.06533145]
[1723641309788,0.3608,60813.0,60802.0,0.00024666]
[1723641309991,0.3608,60813.0,60803.0,0.3608]
[1723641310198,0.3608,60813.0,60802.0,0.00024666]
[1723641310199,0.3608,60808.0,60802.0,0.00024666]
[1723641310697,0.082183,60807.0,60802.0,0.00024666]
[1723641310999,0.082188,60803.0,60802.0,0.00024666]
[1723641311201,0.442988,60803.0,60802.0,0.00024666]
[1723641311894,1.336388,60803.0,60802.0,0.00024666]
[1723641312097,0.082191,60801.0,60787.0,0.06533145]
[1723641312289,0.3608,60794.0,60784.0,0.06533145]
[1723641312486,0.3608,60794.0,60786.0,0.06533145]
[1723641312895,0.3608,60794.0,60787.0,0.06533145]
[1723641313088,0.082194,60799.0,60788.0,0.06533145]
[1723641313299,0.082194,60799.0,60789.0,0.06533145]
[1723641313300,0.3608,60794.0,60789.0,0.06533145]
[1723641313601,0.3608,60794.0,60788.0,0.06533145]
[1723641314105,0.00024666,60797.0,60792.0,0.082202]
[1723641314398,0.00024666,60797.0,60791.0,0.06533145]
[1723641314587,0.00024666,60797.0,60795.0,0.442999]
[1723641314790,0.35782333,60803.0,60796.0,0.082198]
[1723641315001,0.35782333,60803.0,60795.0,0.42613145]
[1723641315200,0.082193,60800.0,60795.0,0.06533145]
[1723641315397,0.35782333,60803.0,60794.0,0.06533145]
[1723641315598,0.35782333,60803.0,60793.0,0.14753245]
[1723641315795,0.35782333,60803.0,60794.0,0.14753145]
[1723641315992,0.00793999,60805.0,60795.0,0.06533145]
[1723641316198,0.3608,60800.0,60794.0,0.14753145]
[1723641316395,0.00024666,60804.0,60796.0,0.06533145]
[1723641316703,0.3608,60802.0,60796.0,0.082198]
[1723641317304,0.3608,60802.0,60795.0,0.06533145]
[1723641317500,0.3608,60802.0,60796.0,0.06533145]
[1723641318303,0.44299,60802.0,60796.0,0.06533145]
[1723641319003,0.3608,60802.0,60796.0,0.06533145]
[1723641319200,0.3608,60802.0,60797.0,0.06533145]
[1723641319793,0.00024666,60804.0,60801.0,0.0817424]
[1723641320198,0.00024666,60804.0,60802.0,0.20695585]
[1723641320409,0.00024666,60804.0,60802.0,0.0817424]
[1723641320596,0.00024666,60804.0,60800.0,0.3608]
[1723641320597,0.08243466,60804.0,60803.0,0.06544689]
[1723641320800,0.44323466,60804.0,60799.0,0.0817424]
[1723641321103,0.44323466,60804.0,60796.0,0.36104666]
[1723641321104,0.082194,60799.0,60797.0,0.06545085]
[1723641321302,0.082194,60799.0,60796.0,0.42649751]
[1723641321501,0.082196,60797.0,60796.0,0.42649751]
[1723641321703,0.082196,60797.0,60796.0,0.36104666]
[1723641321998,0.936436,60797.0,60796.0,0.06571238]
[1723641322202,0.082198,60796.0,60790.0,0.06546572]
[1723641322404,0.082206,60790.0,60789.0,0.06546572]
[1723641322607,0.3608,60792.0,60786.0,0.06546572]
[1723641322804,0.082211,60787.0,60785.0,0.06546572]
[1723641323010,0.082211,60787.0,60784.0,0.06546572]
[1723641324403,0.082209,60788.0,60785.0,0.06546572]
[1723641324610,0.08221,60787.0,60785.0,0.06546572]
[1723641324903,0.082211,60787.0,60785.0,0.06546572]
[1723641325105,0.082206,60791.0,60785.0,0.06546572]
[1723641325705,0.082207,60789.0,60785.0,0.06546572]
[1723641326204,0.36891425,60792.0,60785.0,0.06546572]
[1723641326799,0.00811425,60792.0,60787.0,0.08221]
[1723641326994,0.00811425,60792.0,60787.0,0.06546572]
[1723641326995,0.082206,60790.0,60787.0,0.06546572]
[1723641327297,0.00811425,60792.0,60788.0,0.06546572]
[1723641327695,0.00811425,60792.0,60787.0,0.06546572]
[1723641328104,0.082207,60790.0,60787.0,0.06546572]
[1723641328912,0.082207,60790.0,60785.0,0.06546572]
[1723641329297,0.082208,60789.0,60785.0,0.06546572]
[1723641330204,0.00811425,60792.0,60787.0,0.06546572]
[1723641331103,0.082207,60789.0,60787.0,0.06546572]
[1723641331300,0.08221,60787.0,60786.0,0.06546572]
[1723641331599,0.082213,60786.0,60784.0,0.06546572]
[1723641331804,0.082213,60786.0,60783.0,0.42626572]
[1723641331997,0.3608,60785.0,60780.0,0.06546572]
[1723641332414,0.082215,60784.0,60779.0,0.06571238]
[1723641332704,0.082215,60784.0,60779.0,0.00024666]
[1723641332910,0.443019,60780.0,60779.0,0.00024666]
[1723641333208,0.3608,60780.0,60766.0,0.06546572]
[1723641333409,0.3608,60780.0,60764.0,0.082241]
[1723641333410,0.3608,60769.0,60764.0,0.082241]
[1723641333608,0.3608,60769.0,60763.0,0.06546572]
[1723641334414,0.3608,60769.0,60762.0,0.06546572]
[1723641335113,0.3608,60769.0,60763.0,0.082242]
[1723641335322,0.3608,60769.0,60764.0,0.082241]
[1723641335703,0.3608,60769.0,60763.0,0.06546572]
[1723641336109,0.00795158,60771.0,60765.0,0.06546572]
[1723641336314,0.00795158,60771.0,60767.0,0.06546572]
[1723641336504,0.36875158,60771.0,60765.0,0.06546572]
[1723641336703,0.3608,60771.0,60764.0,0.42626572]
[1723641337108,0.443032,60771.0,60764.0,0.42626572]
[1723641337315,0.3608,60771.0,60764.0,0.42626572]
[1723641337612,0.00024666,60772.0,60766.0,0.06546572]
[1723641338106,0.00024666,60772.0,60767.0,0.06546572]
[1723641338309,0.00796602,60772.0,60767.0,0.06546572]
[1723641338510,0.00796602,60772.0,60768.0,0.06546572]
[1723641338511,0.00024666,60772.0,60768.0,0.06546572]
[1723641339112,0.08247766,60772.0,60768.0,0.06546572]
[1723641339311,0.00024666,60772.0,60770.0,0.06546572]
[1723641340410,0.00024666,60772.0,60771.0,0.04906615]
[1723641341307,0.44327666,60772.0,60769.0,0.04906615]
[1723641341503,0.3608,60770.0,60769.0,0.04906615]
[1723641341809,0.3608,60770.0,60768.0,0.04906615]
[1723641342206,0.3608,60770.0,60765.0,0.06546572]
[1723641342207,0.00785201,60772.0,60766.0,0.06546572]
[1723641342514,0.00785201,60772.0,60769.0,0.04906955]
[1723641342715,0.00785201,60772.0,60770.0,0.04906955]
[1723641343512,0.09008201,60772.0,60770.0,0.04906955]
[1723641343816,0.082232,60771.0,60770.0,0.04906955]
[1723641344007,0.082232,60771.0,60770.0,0.04905958]
[1723641344203,0.082232,60771.0,60767.0,0.06546572]
[1723641344513,0.00785201,60772.0,60768.0,0.06546572]
[1723641345010,0.00785201,60772.0,60771.0,0.3608]
[1723641345204,0.082213,60786.0,60771.0,0.6460748]
[1723641345403,0.4618,60794.0,60782.0,0.3608]
[1723641345404,0.082215,60783.0,60782.0,0.3608]
[1723641346307,0.164431,60783.0,60782.0,0.3608]
[1723641346511,0.082221,60779.0,60778.0,0.19009712]
[1723641347115,0.082221,60779.0,60776.0,0.11924666]
[1723641347116,0.082221,60779.0,60776.0,0.00024666]
[1723641347317,0.08223,60772.0,60771.0,0.06539712]
[1723641347612,0.082225,60776.0,60770.0,0.04908417]
[1723641347816,0.3608,60778.0,60769.0,0.04908417]
[1723641348117,0.082229,60773.0,60770.0,0.04908417]
[1723641348907,0.082233,60771.0,60769.0,0.04908417]
[1723641349214,0.082233,60770.0,60769.0,0.04908417]
[1723641349416,0.082236,60768.0,60767.0,0.06539712]
[1723641349619,0.082236,60768.0,60767.0,0.06547628]
[1723641350112,0.443036,60768.0,60765.0,0.06547647]
[1723641350306,0.443036,60768.0,60765.0,0.06553185]
[1723641350307,0.082239,60766.0,60765.0,0.06553185]
[1723641350518,0.08224,60765.0,60764.0,0.06553185]
[1723641350715,0.082241,60764.0,60763.0,0.06553185]
[1723641351222,0.082243,60763.0,60762.0,0.06553185]
[1723641351517,0.082244,60762.0,60761.0,0.3608]
[1723641352017,0.082244,60762.0,60757.0,0.11766701]
[1723641352018,0.082249,60758.0,60757.0,0.00016701]
[1723641352219,0.525298,60758.0,60757.0,0.00016701]
[1723641352411,0.525298,60758.0,60753.0,0.03838639]
[1723641352412,0.082255,60754.0,60753.0,0.03838639]
[1723641352720,0.082262,60749.0,60748.0,0.06555411]
[1723641352917,0.082263,60748.0,60747.0,0.02942276]
[1723641353215,0.082268,60745.0,60742.0,0.3608]
[1723641353419,0.3608,60749.0,60742.0,0.3608]
[1723641353420,0.08227,60743.0,60742.0,0.3608]
[1723641353712,0.00016985,60744.0,60743.0,0.08227]
[1723641353912,0.00016985,60744.0,60743.0,1.30463413]
[1723641354120,0.00016985,60744.0,60743.0,1.22288773]
[1723641354516,0.0079079,60748.0,60743.0,0.24673773]
[1723641354713,0.0079079,60748.0,60742.0,0.3608]
[1723641354714,0.3608,60750.0,60742.0,0.3608]
[1723641355922,0.082269,60744.0,60742.0,0.3608]
[1723641357032,0.3608,60750.0,60742.0,0.3608]
[1723641357224,0.443061,60750.0,60742.0,0.3608]
[1723641357416,0.3608,60750.0,60742.0,0.3608]
[1723641357620,0.08227,60743.0,60742.0,0.3608]
[1723641357827,0.082285,60732.0,60731.0,0.3608]
[1723641358121,0.082282,60735.0,60731.0,0.3608]
[1723641358317,0.3608,60736.0,60725.0,0.082294]
[1723641358530,0.3608,60736.0,60723.0,0.13491111]